lending/lending_fUSD_20241120
["ID","MTS","AMOUNT","RATE_DAILY","PERIOD"]
[342816038,1732144232399,-675.93717476,0.00048755,2]
[342816039,1732144232418,-1041.76047077,0.00048755,2]
[342816040,1732144232429,-3239.28657571,0.00048755,2]
[342816041,1732144232439,-294.09128389,0.00048756,2]
[342816042,1732144232449,-294.09128389,0.00048758,2]
[342816043,1732144232458,-4141.18360986,0.00048764,2]
[342816044,1732144232467,-200.0,0.00048771,2]
[342816045,1732144232477,-294.09128389,0.00048775,2]
[342816046,1732144232487,-316.77013733,0.00048776,2]
[342816047,1732144232496,-24232.00447025,0.00048785,2]
[342816048,1732144232507,-516.47463262,0.00048788,2]
[342816049,1732144232517,-200.0,0.00048792,2]
[342816050,1732144232527,-18894.95954412,0.00048792,2]
[342816051,1732144232560,-5337.04492613,0.00048792,2]
[342816052,1732144232569,-516.47463262,0.00048799,2]
[342816053,1732144232579,-24232.00447025,0.00048799,2]
[342816054,1732144232588,-472.79124979,0.000488,2]
[342816055,1732144232599,-2761.36378098,0.00048804,2]
[342816056,1732144232607,-516.47463262,0.00048805,2]
[342816057,1732144232618,-200.0,0.00048811,2]
[342816058,1732144232628,-24232.00447025,0.00048817,2]
[342816059,1732144232637,-2761.36378098,0.00048824,2]
[342816060,1732144232646,-472.79124979,0.00048834,2]
[342816061,1732144232656,-316.77013733,0.00048863,2]
[342816062,1732144232665,-4141.18360986,0.00048865,2]
[342816063,1732144232675,-316.77013733,0.00048867,2]
[342816064,1732144232685,-472.79124979,0.00048867,2]
[342816065,1732144232695,-516.47463262,0.00048872,2]
[342816066,1732144232705,-4141.18360986,0.00048876,2]
[342816067,1732144232714,-516.47463262,0.00048877,2]
[342816068,1732144232724,-200.0,0.00048878,2]
[342816069,1732144232733,-294.09128389,0.00048878,2]
[342816070,1732144232743,-294.09128389,0.00048878,2]
[342816071,1732144232753,-294.09128389,0.00048879,2]
[342816072,1732144232762,-472.79124979,0.00048885,2]
[342816073,1732144232771,-472.79124979,0.00048887,2]
[342816074,1732144232780,-472.79124979,0.00048889,2]
[342816075,1732144232789,-2761.36378098,0.00048893,2]
[342816076,1732144232799,-516.47463262,0.00048894,2]
[342816077,1732144232809,-516.47463262,0.00048896,2]
[342816078,1732144232818,-4141.18360986,0.00048901,2]
[342816079,1732144232828,-2761.36378098,0.00048905,2]
[342816080,1732144232838,-2761.36378098,0.00048916,2]
[342816081,1732144232848,-200.0,0.00048924,2]
[342816082,1732144232862,-4141.18360986,0.00048934,2]
[342816083,1732144232873,-200.0,0.00048937,2]
[342816084,1732144232883,-2761.36378098,0.00048938,2]
[342816085,1732144232892,-4141.18360986,0.0004894,2]
[342816086,1732144232901,-4141.18360986,0.00048941,2]
[342816087,1732144232911,-316.77013733,0.00048944,2]
[342816088,1732144232920,-24232.00447025,0.00048947,2]
[342816089,1732144232929,-294.09128389,0.00048947,2]
[342816090,1732144232939,-24232.00447025,0.00048959,2]
[342816091,1732144232948,-200.0,0.0004896,2]
[342816092,1732144232958,-294.09128389,0.0004896,2]
[342816093,1732144232967,-4141.18360986,0.00048975,2]
[342816094,1732144232977,-316.77013733,0.00048976,2]
[342816095,1732144232987,-316.77013733,0.0004898,2]
[342816096,1732144232996,-200.0,0.00048982,2]
[342816097,1732144233006,-24232.00447025,0.00048993,2]
[342816098,1732144233015,-200.0,0.00048998,2]
[342816099,1732144233025,-1000.0,0.00048999,2]
[342816100,1732144233034,-10000.0,0.00049,120]
[342816101,1732144233044,-700.0,0.00049,2]
[342816102,1732144233053,-822.395,0.00049165,85]
[342816103,1732144233063,-2500.0,0.00049455,120]
[342816104,1732144233072,-1979.30741265,0.0004949,120]
[342816105,1732144233083,-1000.0,0.00049503,30]
[342816106,1732144233092,-282.0,0.00049504,7]
[342816107,1732144233102,-2836.74749927,0.00049504,45]
[342816108,1732144233111,-24847.10165967,0.00049505,45]
[342816109,1732144233123,-200.0,0.00049549,45]
[342816110,1732144233134,-902.19069192,0.00049554,21]
[342816111,1732144233143,-200.0,0.00049555,45]
[342816112,1732144233152,-543.3977696,0.00049559,2]
[342816113,1732144233163,-2836.74749927,0.0004959,45]
[342816114,1732144233172,-200.0,0.00049599,45]
[342816115,1732144233182,-500.0,0.000496,18]
[342816116,1732144233191,-1900.6208245,0.00049615,45]
[342816117,1732144233201,-16568.1826864,0.00049648,45]
[342816118,1732144233211,-145392.02682203,0.00049654,45]
[342816119,1732144233222,-152.0,0.00049659,3]
[342816120,1732144233233,-145392.02682203,0.0004966,45]
[342816121,1732144233243,-24847.10165967,0.00049664,45]
[342816122,1732144233254,-208.59494481,0.00049679,45]
[342816123,1732144233264,-1100.0,0.000497,18]
[342816124,1732144233275,-166.82955001,0.000497,26]
[342816125,1732144233285,-167.55808116,0.000497,37]
[342816126,1732144233296,-255000.0,0.000497,120]
[342816127,1732144233306,-208.59494481,0.00049704,45]
[342816128,1732144233316,-200.0,0.00049705,45]
[342816129,1732144233327,-1764.54770389,0.00049727,45]
[342816130,1732144233337,-1900.6208245,0.00049751,45]
[342816131,1732144233348,-129237.35717512,0.00049761,3]
[342816132,1732144233359,-1764.54770389,0.00049765,45]
[342816133,1732144233371,-500.0,0.00049773,2]
[342816134,1732144233381,-16568.1826864,0.00049779,45]
[342816135,1732144233392,-22086.31258637,0.00049799,3]
[342816136,1732144233402,-200.0,0.000498,3]
[342816137,1732144233413,-111814.69702122,0.000498,120]
[342816144,1732144237771,-299.58797889,0.000498,120]
[342816145,1732144237782,-408.0085986,0.000498,120]
[342816146,1732144237794,-591.9914014,0.000498,120]
[342816147,1732144237968,-386884.71499989,0.000498,120]
[342816148,1732144237979,-499999.0,0.000498,120]
[342816149,1732144237990,-1700.0,0.000498,18]
[342816150,1732144237999,-14727.27349901,0.00049802,3]
[342816151,1732144238008,-1302.0,0.00049808,120]
[342816152,1732144238017,-1568.48684789,0.0004981,3]
[342816153,1732144238027,-22086.31258637,0.00049823,3]
[342816154,1732144238038,-1568.48684789,0.00049825,3]
[342816155,1732144238048,-22086.31258637,0.00049842,3]
[342816156,1732144238057,-1568.48684789,0.00049845,3]
[342816157,1732144238066,-129237.35717512,0.00049856,3]
[342816158,1732144238076,-30000.0,0.00049856,4]
[342816159,1732144238085,-1450.85033429,0.00049858,4]
[342816160,1732144238094,-2688.998,0.0004986,90]
[342816161,1732144238104,-20429.83914238,0.00049869,4]
[342816162,1732144238113,-119544.55538698,0.0004987,4]
[342816163,1732144238124,-13622.72798658,0.00049882,4]
[342816164,1732144238134,-13622.72798658,0.00049883,4]
[342816165,1732144238143,-2547.94152136,0.00049888,4]
[342816166,1732144238152,-1450.85033429,0.00049895,4]
[342816167,1732144238162,-20429.83914238,0.00049897,4]
[342816168,1732144238172,-2300.0,0.000499,18]
[342816169,1732144238182,-119544.55538698,0.000499,4]
[342816170,1732144238192,-13622.72798658,0.00049906,4]
[342816171,1732144238201,-1450.85033429,0.00049907,4]
[342816172,1732144238212,-14727.27349901,0.0004991,3]
[342816173,1732144238227,-13622.72798658,0.00049914,4]
[342816174,1732144238237,-1450.85033429,0.00049921,4]
[342816175,1732144238247,-1450.85033429,0.00049922,4]
[342816176,1732144238256,-2547.94152136,0.0004993,4]
[342816177,1732144238269,-20429.83914238,0.00049931,4]
[342816178,1732144238279,-20429.83914238,0.00049936,4]
[342816179,1732144238288,-2521.55333268,0.00049936,3]
[342816180,1732144238299,-20429.83914238,0.0004994,4]
[342816181,1732144238310,-2332.43683272,0.00049942,4]
[342816182,1732144238319,-2521.55333268,0.00049944,3]
[342816183,1732144238329,-119544.55538698,0.00049951,4]
[342816184,1732144238338,-2754.53137445,0.00049955,3]
[342816185,1732144238348,-2547.94152136,0.0004996,4]
[342816186,1732144238358,-13622.72798658,0.00049964,4]
[342816187,1732144238367,-119544.55538698,0.0004997,4]
[342816189,1732144238378,-4205.01688173,0.00049975,15]
[342816191,1732144238387,-2547.94152136,0.00049975,4]
[342816193,1732144238396,-20429.83914238,0.00049977,4]
[342816195,1732144238405,-2521.55333268,0.00049981,3]
[342816197,1732144238414,-14727.27349901,0.00049982,3]
[342816198,1732144238424,-2547.94152136,0.00049983,4]
[342816201,1732144238433,-119544.55538698,0.00049983,4]
[342816202,1732144238443,-2754.53137445,0.00049984,3]
[342816204,1732144238452,-1450.85033429,0.00049984,4]
[342816206,1732144238462,-2547.94152136,0.00049985,4]
[342816209,1732144238471,-2754.53137445,0.00049985,3]
[342816211,1732144238482,-13622.72798658,0.00049994,4]
[342816213,1732144238491,-129237.35717512,0.00049996,3]
[342816214,1732144238501,-119544.55538698,0.00049998,4]
[342816215,1732144238510,-12500.0,0.0005,120]
[342816216,1732144238520,-235.93342908,0.00050005,15]
[342816217,1732144238529,-12500.0,0.0005025,120]
[342816218,1732144238539,-539.59,0.000505,120]
[342816219,1732144238548,-543.39776957,0.00050512,2]
[342816220,1732144238558,-164.066,0.0005074,120]
[342816221,1732144238567,-200.0,0.00050832,120]
[342816222,1732144238576,-218.25,0.00050982,2]
[342816223,1732144238585,-750.0,0.00051,2]
[342816224,1732144238594,-150.0,0.00051,100]
[342816225,1732144238603,-156.96,0.000511,120]
[342816226,1732144238612,-150.0,0.000511,24]
[342816228,1732144238621,-600.0,0.00051115,20]
[342816229,1732144238631,-600.0,0.00051115,20]
[342816230,1732144238640,-600.0,0.00051115,20]
[342816231,1732144238649,-600.0,0.00051115,20]
[342816232,1732144238661,-600.0,0.00051115,20]
[342816233,1732144238670,-600.0,0.00051115,20]
[342816234,1732144238679,-600.0,0.00051115,20]
[342816235,1732144238689,-600.0,0.00051115,20]
[342816236,1732144238700,-600.0,0.00051115,20]
[342816237,1732144238709,-600.0,0.00051115,20]
[342816238,1732144238719,-600.0,0.00051115,40]
[342816239,1732144238728,-600.0,0.00051115,20]
[342816240,1732144238737,-600.0,0.00051115,20]
[342816241,1732144238747,-600.0,0.00051115,20]
[342816242,1732144238756,-600.0,0.00051115,20]
[342816243,1732144238765,-600.0,0.00051115,20]
[342816244,1732144238774,-600.0,0.00051115,20]
[342816245,1732144238783,-600.0,0.00051115,20]
[342816246,1732144238792,-600.0,0.00051115,20]
[342816247,1732144238801,-600.0,0.00051115,20]
[342816248,1732144238810,-600.0,0.00051115,20]
[342816249,1732144238819,-600.0,0.00051115,40]
[342816250,1732144238828,-1115.12005779,0.00051123,120]
[342816251,1732144238837,-4205.01688173,0.0005125,15]
[342816252,1732144238846,-1000.0,0.00051276,120]
[342816253,1732144238855,-235.93342908,0.0005131,15]
[342816254,1732144238864,-543.39776957,0.00051465,2]
[342816255,1732144238875,-3000.0,0.000515,2]
[342816256,1732144238884,-150.0,0.000515,101]
[342816257,1732144238893,-4490.95579602,0.00051699,21]
[342816258,1732144238902,-164.198405,0.000518,120]
[342816259,1732144238911,-150.0,0.00052,102]
[342816260,1732144238920,-543.39776957,0.00052418,2]
[342816261,1732144238928,-255.702247,0.000525,103]
[342816262,1732144238937,-4205.01688173,0.00052524,15]
[342816263,1732144238947,-235.93342908,0.00052616,15]
[342816264,1732144238957,-1000.0,0.00052969,120]
[342816265,1732144238966,-800.0,0.00053,2]
[342816266,1732144238975,-218.25,0.00053245,2]
[342816267,1732144238985,-543.39776957,0.00053371,2]
[342816268,1732144238995,-164.049,0.0005349,120]
[342816269,1732144239006,-4205.01688173,0.00053799,15]
[342816270,1732144239015,-235.93342908,0.00053921,15]
[342816271,1732144239026,-92000.0,0.00054,120]
[342816272,1732144239034,-3000.0,0.000542,2]
[342816273,1732144239044,-543.39776957,0.00054324,2]
[342816274,1732144239055,-322.18495804,0.00054694,11]
[342816275,1732144239065,-500.0,0.00054794,120]
[342816276,1732144239074,-223.27385606,0.00054794,120]
[342816277,1732144239083,-512.19460372,0.00054794,120]
[342816278,1732144239093,-182.2504068,0.00054794,120]
[342816279,1732144239102,-500.0,0.00054794,120]
[342816280,1732144239111,-500.0,0.00054794,120]
[342816281,1732144239122,-500.0,0.00054794,120]
[342816282,1732144239136,-513.92138151,0.00054794,120]
[342816283,1732144239144,-500.0,0.00054794,120]
[342816284,1732144239153,-307.45200748,0.00054794,120]
[342816285,1732144239163,-500.0,0.00054794,120]
[342816286,1732144239172,-501.37613969,0.00054794,120]
[342816287,1732144239182,-500.0,0.00054794,120]
[342816288,1732144239191,-511.28738653,0.00054794,120]
[342816289,1732144239200,-500.58702335,0.00054794,120]
[342816290,1732144239210,-500.0,0.00054794,120]
[342816291,1732144239222,-500.0,0.00054794,120]
[342816292,1732144239231,-500.0,0.00054794,120]
[342816293,1732144239241,-500.0,0.00054794,120]
[342816294,1732144239251,-500.0,0.00054794,120]
[342816295,1732144239262,-500.0,0.00054794,120]
[342816296,1732144239272,-500.0,0.00054794,120]
[342816298,1732144239281,-500.0,0.00054794,120]
[342816299,1732144239291,-500.0,0.00054794,120]
[342816301,1732144239301,-500.0,0.00054794,120]
[342816303,1732144239311,-500.0,0.00054794,120]
[342816304,1732144239321,-500.0,0.00054794,120]
[342816305,1732144239331,-500.0,0.00054794,120]
[342816306,1732144239340,-500.0,0.00054794,120]
[342816307,1732144239350,-500.0,0.00054794,120]
[342816308,1732144239360,-438.32466255,0.00054794,120]
[342816309,1732144239372,-500.0,0.00054794,120]
[342816310,1732144239382,-500.0,0.00054794,30]
[342816311,1732144239391,-500.0,0.00054794,120]
[342816314,1732144239401,-500.0,0.00054794,120]
[342816316,1732144239411,-500.0,0.00054794,120]
[342816317,1732144239420,-500.0,0.00054794,120]
[342816318,1732144239430,-500.0,0.00054794,120]
[342816319,1732144239440,-500.0,0.00054794,120]
[342816320,1732144239449,-500.0,0.00054794,120]
[342816321,1732144239459,-500.0,0.00054794,120]
[342816322,1732144239469,-1000.0,0.00054794,120]
[342816323,1732144239479,-500.0,0.00054794,120]
[342816324,1732144239489,-500.0,0.00054794,120]
[342816325,1732144239499,-500.0,0.00054794,120]
[342816326,1732144239508,-500.0,0.00054794,120]
[342816327,1732144239518,-500.0,0.00054794,120]
[342816328,1732144239527,-501.35820992,0.00054794,120]
[342816329,1732144239536,-500.0,0.00054794,120]
[342816330,1732144239546,-500.0,0.00054794,120]
[342816331,1732144239555,-335.52504582,0.00054794,120]
[342816332,1732144239565,-501.44250991,0.00054794,120]
[342816333,1732144239574,-369.40246597,0.00054794,120]
[342816334,1732144239583,-511.32697488,0.00054794,120]
[342816335,1732144239593,-502.79211512,0.00054794,120]
[342816336,1732144240584,-210.56438646,0.00054794,120]
[342816337,1732144240610,-500.0,0.00054794,120]
[342816338,1732144240638,-500.0,0.00054794,120]
[342816339,1732144240649,-500.0,0.00054794,120]
[342816340,1732144240659,-501.47566958,0.00054794,120]
[342816341,1732144240668,-500.0,0.00054794,120]
[342816342,1732144240678,-500.0,0.00054794,120]
[342816343,1732144240687,-500.0,0.00054794,120]
[342816344,1732144240697,-500.0,0.00054794,120]
[342816345,1732144240706,-500.0,0.00054794,120]
[342816346,1732144240716,-500.0,0.00054794,120]
[342816347,1732144240725,-286.33871518,0.00054794,5]
[342816348,1732144240736,-500.0,0.00054794,120]
[342816349,1732144240747,-500.0,0.00054794,120]
[342816350,1732144240759,-295.69382382,0.00054794,120]
[342816351,1732144240771,-500.0,0.00054794,120]
[342816352,1732144240782,-500.0,0.00054794,120]
[342816353,1732144240792,-500.0,0.00054794,120]
[342816354,1732144240802,-500.0,0.00054794,7]
[342816355,1732144240812,-500.0,0.00054794,120]
[342816356,1732144240821,-500.0,0.00054794,120]
[342816357,1732144240831,-500.0,0.00054794,120]
[342816358,1732144240841,-500.0,0.00054794,120]
[342816359,1732144240851,-500.0,0.00054794,120]
[342816360,1732144240860,-500.0,0.00054794,30]
[342816361,1732144240869,-500.0,0.00054794,120]
[342816362,1732144240882,-646.74768428,0.00054794,120]
[342816363,1732144240894,-500.0,0.00054794,120]
[342816364,1732144240904,-500.0,0.00054794,120]
[342816365,1732144240913,-500.0,0.00054794,120]
[342816366,1732144240924,-500.0,0.00054794,120]
[342816367,1732144240933,-500.0,0.00054794,120]
[342816368,1732144240943,-500.0,0.00054794,120]
[342816369,1732144240953,-500.0,0.00054794,120]
[342816370,1732144240963,-512.64801603,0.00054794,120]
[342816371,1732144240972,-500.0,0.00054794,120]
[342816372,1732144240982,-500.0,0.00054794,120]
[342816373,1732144240992,-500.85264664,0.00054794,120]
[342816374,1732144241002,-500.0,0.00054794,120]
[342816375,1732144241012,-500.0,0.00054794,120]
[342816376,1732144241022,-500.0,0.00054794,120]
[342816377,1732144241031,-500.0,0.00054794,120]
[342816378,1732144241040,-500.0,0.00054794,120]
[342816379,1732144241050,-500.0,0.00054794,120]
[342816380,1732144241060,-500.0,0.00054794,120]
[342816381,1732144241071,-500.0,0.00054794,120]
[342816382,1732144241080,-500.0,0.00054794,120]
[342816383,1732144241090,-161.15093037,0.00054794,120]
[342816384,1732144241099,-500.0,0.00054794,120]
[342816385,1732144241109,-500.0,0.00054794,120]
[342816386,1732144241119,-500.0,0.00054794,120]
[342816387,1732144241130,-500.0,0.00054794,120]
[342816388,1732144241139,-500.0,0.00054794,120]
[342816389,1732144241149,-500.60648818,0.00054794,120]
[342816390,1732144241159,-500.0,0.00054794,120]
[342816391,1732144241168,-1000.0,0.00054794,2]
[342816392,1732144241178,-500.0,0.00054794,120]
[342816393,1732144241188,-500.0,0.00054794,120]
[342816394,1732144241197,-208.04437072,0.00054794,120]
[342816395,1732144241207,-500.0,0.00054794,120]
[342816396,1732144241219,-500.0,0.00054794,120]
[342816397,1732144241229,-500.0,0.00054794,120]
[342816398,1732144241238,-500.0,0.00054794,120]
[342816399,1732144241247,-500.0,0.00054794,120]
[342816400,1732144241258,-500.0,0.00054794,120]
[342816401,1732144241267,-500.0,0.00054794,120]
[342816402,1732144241278,-500.0,0.00054794,120]
[342816403,1732144241288,-668.19,0.00054794,120]
[342816404,1732144241298,-500.0,0.00054794,120]
[342816405,1732144241307,-500.0,0.00054794,120]
[342816406,1732144241317,-500.0,0.00054794,120]
[342816407,1732144241326,-500.0,0.00054794,120]
[342816408,1732144241335,-500.0,0.00054794,2]
[342816409,1732144241345,-820.78,0.00054794,120]
[342816410,1732144241354,-500.0,0.00054794,120]
[342816411,1732144241364,-500.0,0.00054794,120]
[342816412,1732144241375,-500.0,0.00054794,120]
[342816413,1732144241385,-500.0,0.00054794,120]
[342816414,1732144241395,-500.0,0.00054794,120]
[342816415,1732144241405,-500.0,0.00054794,120]
[342816416,1732144241414,-500.0,0.00054794,120]
[342816417,1732144241424,-500.0,0.00054794,120]
[342816418,1732144241434,-500.0,0.00054794,120]
[342816419,1732144241443,-500.0,0.00054794,120]
[342816420,1732144241452,-500.0,0.00054794,120]
[342816421,1732144241462,-500.0,0.00054794,120]
[342816422,1732144241471,-530.78853619,0.00054794,120]
[342816423,1732144241482,-500.0,0.00054794,120]
[342816424,1732144241491,-500.0,0.00054794,120]
[342816425,1732144241501,-500.0,0.00054794,120]
[342816426,1732144241512,-500.0,0.00054794,120]
[342816427,1732144241522,-500.0,0.00054794,120]
[342816428,1732144241532,-500.0,0.00054794,120]
[342816429,1732144241541,-500.0,0.00054794,120]
[342816430,1732144241550,-500.0,0.00054794,120]
[342816431,1732144241560,-500.0,0.00054794,120]
[342816432,1732144241569,-500.0,0.00054794,120]
[342816433,1732144241578,-500.0,0.00054794,120]
[342816434,1732144241587,-500.0,0.00054794,120]
[342816435,1732144241597,-948.67,0.00054794,120]
[342816436,1732144241606,-500.0,0.00054794,120]
[342816437,1732144241615,-500.0,0.00054794,120]
[342816438,1732144241626,-500.0,0.00054794,120]
[342816439,1732144241636,-500.0,0.00054794,120]
[342816440,1732144241645,-500.0,0.00054794,120]
[342816441,1732144241655,-500.0,0.00054794,120]
[342816442,1732144241664,-500.0,0.00054794,120]
[342816443,1732144241673,-500.0,0.00054794,120]
[342816444,1732144241682,-500.0,0.00054794,120]
[342816445,1732144241691,-500.0,0.00054794,120]
[342816446,1732144241700,-500.0,0.00054794,120]
[342816447,1732144241710,-500.0,0.00054794,120]
[342816448,1732144241719,-500.0,0.00054794,120]
[342816449,1732144241728,-500.0,0.00054794,2]
[342816450,1732144241737,-500.0,0.00054794,120]
[342816451,1732144241746,-500.0,0.00054794,120]
[342816452,1732144241755,-500.0,0.00054794,120]
[342816453,1732144241765,-500.0,0.00054794,120]
[342816454,1732144241776,-555.7479195,0.00054794,120]
[342816455,1732144241785,-500.0,0.00054794,120]
[342816456,1732144241794,-500.0,0.00054794,120]
[342816457,1732144241803,-500.0,0.00054794,120]
[342816458,1732144241812,-988.41,0.00054794,120]
[342816459,1732144241822,-500.0,0.00054794,120]
[342816460,1732144241831,-500.0,0.00054794,120]
[342816461,1732144241840,-500.0,0.00054794,120]
[342816462,1732144241849,-500.0,0.00054794,120]
[342816463,1732144241859,-500.0,0.00054794,120]
[342816464,1732144241868,-500.0,0.00054794,120]
[342816465,1732144241880,-500.0,0.00054794,120]
[342816466,1732144241889,-500.0,0.00054794,120]
[342816467,1732144241899,-500.0,0.00054794,120]
[342816468,1732144241909,-500.0,0.00054794,120]
[342816469,1732144241918,-500.0,0.00054794,120]
[342816470,1732144241927,-645.36337545,0.00054794,120]
[342816471,1732144241936,-500.0,0.00054794,120]
[342816472,1732144241945,-500.0,0.00054794,120]
[342816473,1732144241955,-500.0,0.00054794,120]
[342816474,1732144241964,-500.0,0.00054794,120]
[342816475,1732144241974,-546.92,0.00054794,120]
[342816476,1732144241983,-500.0,0.00054794,120]
[342816477,1732144241993,-500.0,0.00054794,120]
[342816478,1732144242004,-1003.14,0.00054794,60]
[342816479,1732144242013,-500.0,0.00054794,120]
[342816480,1732144242023,-500.0,0.00054794,120]
[342816481,1732144242034,-500.0,0.00054794,2]
[342816482,1732144242044,-500.0,0.00054794,120]
[342816483,1732144242052,-500.0,0.00054794,120]
[342816484,1732144242062,-191.808579,0.00054794,120]
[342816485,1732144242071,-500.0,0.00054794,120]
[342816486,1732144242080,-500.0,0.00054794,120]
[342816487,1732144242089,-1000.0,0.00054794,30]
[342816488,1732144242098,-937.46,0.00054794,120]
[342816489,1732144242107,-500.0,0.00054794,120]
[342816490,1732144242117,-500.0,0.00054794,120]
[342816491,1732144242126,-500.0,0.00054794,120]
[342816492,1732144242136,-500.0,0.00054794,120]
[342816493,1732144242145,-500.0,0.00054794,120]
[342816494,1732144242154,-500.0,0.00054794,120]
[342816495,1732144242163,-292.51382227,0.00054794,120]
[342816496,1732144242174,-500.0,0.00054794,120]
[342816497,1732144242183,-500.0,0.00054794,120]
[342816498,1732144242193,-500.0,0.00054794,120]
[342816499,1732144242204,-500.0,0.00054794,120]
[342816500,1732144242213,-500.0,0.00054794,120]
[342816501,1732144242226,-500.0,0.00054794,120]
[342816502,1732144242235,-500.0,0.00054794,120]
[342816503,1732144242245,-500.0,0.00054794,120]
[342816504,1732144242256,-500.0,0.00054794,120]
[342816505,1732144242267,-500.0,0.00054794,120]
[342816506,1732144242276,-500.0,0.00054794,120]
[342816507,1732144242285,-500.0,0.00054794,120]
[342816510,1732144242296,-500.0,0.00054794,120]
[342816511,1732144242304,-500.0,0.00054794,120]
[342816513,1732144242313,-500.0,0.00054794,120]
[342816514,1732144242323,-500.0,0.00054794,120]
[342816515,1732144242332,-500.0,0.00054794,120]
[342816516,1732144242341,-500.0,0.00054794,120]
[342816517,1732144242350,-500.0,0.00054794,120]
[342816518,1732144242359,-500.0,0.00054794,120]
[342816519,1732144242368,-500.0,0.00054794,120]
[342816520,1732144242379,-500.0,0.00054794,120]
[342816521,1732144242391,-500.0,0.00054794,120]
[342816522,1732144242401,-500.0,0.00054794,120]
[342816523,1732144242411,-500.0,0.00054794,120]
[342816524,1732144242420,-500.0,0.00054794,120]
[342816525,1732144242429,-731.47,0.00054794,120]
[342816526,1732144242438,-500.0,0.00054794,120]
[342816527,1732144242448,-500.0,0.00054794,120]
[342816528,1732144242457,-700.0,0.00054794,120]
[342816529,1732144242467,-500.0,0.00054794,120]
[342816530,1732144242476,-500.0,0.00054794,120]
[342816531,1732144242485,-500.0,0.00054794,120]
[342816532,1732144242494,-500.0,0.00054794,120]
[342816533,1732144242504,-500.0,0.00054794,120]
[342816534,1732144242513,-500.0,0.00054794,120]
[342816535,1732144242521,-500.0,0.00054794,120]
[342816536,1732144242531,-500.0,0.00054794,120]
[342816537,1732144242540,-500.0,0.00054794,120]
[342816538,1732144242549,-500.0,0.00054794,120]
[342816539,1732144242558,-500.0,0.00054794,120]
[342816540,1732144242567,-500.0,0.00054794,120]
[342816541,1732144242575,-500.0,0.00054794,120]
[342816542,1732144242585,-500.0,0.00054794,120]
[342816543,1732144242595,-775.39,0.00054794,120]
[342816544,1732144242604,-500.0,0.00054794,120]
[342816545,1732144242613,-500.0,0.00054794,120]
[342816546,1732144242621,-500.0,0.00054794,120]
[342816547,1732144242633,-500.0,0.00054794,120]
[342816548,1732144242642,-500.0,0.00054794,120]
[342816549,1732144242652,-500.0,0.00054794,120]
[342816550,1732144242661,-436.64705521,0.00054794,120]
[342816551,1732144242671,-500.0,0.00054794,120]
[342816552,1732144242680,-500.0,0.00054794,120]
[342816553,1732144242689,-500.0,0.00054794,120]
[342816554,1732144242700,-500.0,0.00054794,120]
[342816555,1732144242710,-500.0,0.00054794,120]
[342816556,1732144242719,-500.0,0.00054794,60]
[342816557,1732144242728,-500.0,0.00054794,120]
[342816558,1732144242739,-500.0,0.00054794,120]
[342816559,1732144242748,-500.0,0.00054794,120]
[342816560,1732144242758,-461.26781959,0.00054794,120]
[342816561,1732144242768,-500.0,0.00054794,120]
[342816562,1732144242778,-500.0,0.00054794,120]
[342816563,1732144242788,-500.0,0.00054794,120]
[342816564,1732144242797,-721.49,0.00054794,120]
[342816565,1732144242806,-500.0,0.00054794,120]
[342816566,1732144242815,-500.0,0.00054794,120]